Cogmind - Beta 10.2 @@@ ROGUE MODE // 2020.11.17 @ 10:48:33 // Halloween2020/ForbiddenLore Player: slanderous_mambo Result: Destroyed by S-10 Pest with Light Assault Rifle Performance ------------- Evolutions (0) 0 Regions Visited (1) 200 Robots Destroyed (13) 65 Value Destroyed (359) 359 Prototype IDs (0) 0 Alien Tech Used (0) 0 Bonus (0) 0 TOTAL SCORE: 624 Bonus ------- None Cogmind --------- Core Integrity 0/250 Matter 283/300 Energy 250/250 System Corruption 0% Temperature Cool (0) Movement Walking (150) Ox1 Location -10/Materials Parts ------- > --- POWER (1) -------- Ion Engine > --- PROPULSION (2) --- Aluminum Leg Aluminum Leg > --- UTILITY (2) ------ High-capacity Storage Unit Seismic Analyzer > --- WEAPON (2) ------- Light Assault Rifle Light Assault Rifle > --- INVENTORY (12) --- Light Ion Engine Light Ion Engine Light Ion Engine Light Treads Light Treads Heat Sink Large Storage Unit ECM Suite Peak State ------------ > --- POWER ------------ Light Nuclear Core > --- PROPULSION ------- Aluminum Leg Aluminum Leg > --- UTILITY ---------- Large Storage Unit Seismic Analyzer > --- WEAPON ----------- Light Assault Rifle Light Assault Rifle > --- INVENTORY -------- Light Ion Engine Light Ion Engine Light Ion Engine Light Ion Engine Light Treads Light Treads Aluminum Leg Large Storage Unit High-capacity Storage Unit Light Assault Rifle [Rating: 10] Favorites ----------- Power Light Ion Engine Engine Light Ion Engine Power Core Light Nuclear Core Propulsion Aluminum Leg Leg Aluminum Leg Utility Large Storage Unit Storage Large Storage Unit Processor Seismic Analyzer Weapon Light Assault Rifle Ballistic Gun Light Assault Rifle Build | -11 -10 ------- Run | Scr Mat Slots Evolved . | . . Power . | . . Propulsion . | . . Utility . | . . Weapon . | . . Parts Attached 20 | 7 13 Power 5 | 1 4 Engine 4 | 1 3 Core 1 | . 1 Reactor . | . . Propulsion 4 | 2 2 Treads . | . . Leg 4 | 2 2 Wheel . | . . Hover . | . . Flight . | . . Utility 5 | 1 4 Device . | . . Storage 4 | 1 3 Processor 1 | . 1 Hackware . | . . Protection . | . . Artifact . | . . Weapon 6 | 3 3 Energy Gun . | . . Energy Cannon . | . . Ballistic Gun 6 | 3 3 Ballistic Cannon . | . . Launcher . | . . Special Weapon . | . . Impact Weapon . | . . Slashing Weapon . | . . Piercing Weapon . | . . Special Melee Weapon . | . . Unidentified Prototypes . | . . Parts Lost 7 | . 7 Power 2 | . 2 Propulsion 2 | . 2 Utility . | . . Weapon 3 | . 3 Highest Loss Streak 3 | . 3 Average Slot Usage (%) 96 | . 96 Engine 7 | . 7 Core 5 | . 5 Leg 26 | . 26 Storage 21 | . 21 Processor 6 | . 6 Ballistic Gun 27 | . 27 Naked Turns . | . . Heaviest Build 41 | 11 41 Greatest Support 20 | 20 20 Greatest Overweight (x) 12 | 2 12 Average Overweight (x) 1 | . 1 Largest Inventory Capacity 16 | 6 16 Average Capacity 13 | 5 14 Most Carried 11 | 5 11 Average Carried 7 | 2 7 Final Capacity 12 | 6 12 Final Carried 8 | 4 8 Class Distribution -------------------- 82% | Mutant 17% | Scavenger-Mutant Dominant Class ---------------- Mutant | -10/Materials Resources | -11 -10 ----------- Run | Scr Mat Matter Collected 585 | 201 384 Remotely . | . . Salvage Created 435 | . 435 Parts 32 | . 32 Haulers Intercepted . | . . Recyclers Shooed . | . . Parts Field Recycled . | . . Retrieved Matter . | . . Parts Self-Destructed . | . . Prevented . | . . Kills | -11 -10 ------- Run | Scr Mat Combat Hostiles Destroyed 13 | . 13 Guns 13 | . 13 Classes Destroyed 2 | . 2 Swarmer 4 | . 4 Grunt 9 | . 9 Best Kill Streak 3 | . 3 Combat Bots Only 3 | . 3 Max Kills in Single Turn 2 | . 2 Gunslinging 1 | . 1 Exploded . | . . Melee . | . . Uniques/NPCs Destroyed . | . . Combat | -11 -10 -------- Run | Scr Mat Damage Taken 1052 | . 1052 Core 253 | . 253 Absorbed by Shields . | . . Core Remaining (%) 100 | 100 . Volleys Fired 61 | . 61 Largest 2 | . 2 Hottest 40 | . 40 Shots Fired 113 | . 113 Gun 113 | . 113 Cannon . | . . Launcher . | . . Special . | . . Kinetic 113 | . 113 Thermal . | . . Explosive . | . . Electromagnetic . | . . Robot Hit Streak 8 | . 8 Robot Miss Streak 10 | . 10 Penetration Max . | . . Secondary Targets 6 | . 6 Max Gunslinging Chain 1 | . 1 Shots Hit Robots 61 | . 61 Core Hits 26 | . 26 Critical Hits . | . . Critical Kills . | . . Critical Parts Destroyed . | . . Melee Attacks . | . . Impact . | . . Slashing . | . . Piercing . | . . Sneak Attacks . | . . Combat Hostiles . | . . Follow-up Attacks . | . . Damage Inflicted 724 | . 724 Guns 724 | . 724 Cannons . | . . Explosions . | . . Melee . | . . Ramming . | . . Kinetic 724 | . 724 Thermal . | . . Explosive . | . . Electromagnetic . | . . Impact . | . . Slashing . | . . Piercing . | . . Highest Corruption . | . . Average Corruption . | . . Corruption Purged . | . . Overload Shots . | . . Overflow Damage . | . . Projectiles . | . . Explosions . | . . Melee . | . . Knockbacks . | . . Impact . | . . Kinetic . | . . Secondary . | . . Self-Inflicted Damage . | . . Shots . | . . Rammed . | . . Targets Rammed . | . . Kicked . | . . Crushed . | . . Highest Temperature 18 | . 18 Average Temperature 5 | . 5 Received Heat Transfer 459 | . 459 Siege Activations . | . . Robots Corrupted . | . . Combat Hostiles . | . . Parts Fried . | . . Impact Corruptions . | . . Robots Melted . | . . Combat Hostiles . | . . Parts Melted . | . . Heat Transferred . | . . Parts Sabotaged . | . . Parts Stolen . | . . Parts Stripped . | . . Power Chain Reactions . | . . Missiles Intercepted . | . . Alert | -11 -10 ------- Run | Scr Mat Peak Influence 188 | . 188 Initial . | . . Average 70 | . 76 Maximum Alert Level . | . . Low Security (%) 100 | 100 100 Level 1 . | . . Level 2 . | . . Level 3 . | . . Level 4 . | . . Level 5 . | . . High Security . | . . Max Security . | . . Squads Dispatched 2 | . 2 Investigation 1 | . 1 Extermination . | . . Reinforcement 1 | . 1 Assault . | . . Garrison . | . . Intercept . | . . Construction Impeded . | . . Haulers Reinforced . | . . Stealth | -11 -10 --------- Run | Scr Mat Distress Signals 1 | . 1 Communications Jammed . | . . Distress Signals . | . . Times Spotted 25 | . 25 Peak Tracking Total 6 | . 6 Tactical Retreats . | . . Traps | -11 -10 ------- Run | Scr Mat Traps Triggered 2 | . 2 Indirectly . | . . Trap Hack Attempts . | . . Triggered . | . . Disarmed . | . . Reprogrammed . | . . Reused . | . . Traps Extracted . | . . Installed . | . . Triggered . | . . Machines | -11 -10 ---------- Run | Scr Mat Machines Disabled . | . . Max in Single Turn . | . . Machines Sabotaged . | . . Garrisons Compromised . | . . Overloaded Fab Kills . | . . Fab Network Shutdowns . | . . Hacking | -11 -10 --------- Run | Scr Mat Machines Accessed 4 | . 4 Terminals 1 | . 1 Fabricators . | . . Repair Stations 1 | . 1 Recycling Units 2 | . 2 Scanalyzers . | . . Garrison Access . | . . Total Hacks 9 | . 9 Successful 6 | . 6 Failed 3 | . 3 Catastrophic . | . . Database Lockouts . | . . Manual . | . . Terminals 4 | . 4 Fabricators . | . . Repair Stations 1 | . 1 Recycling Units 4 | . 4 Scanalyzers . | . . Garrison Access . | . . Terminal Hacks 2 | . 2 Emergency Access Points 1 | . 1 Locate Traps 1 | . 1 Fabricator Hacks . | . . Repair Station Hacks 1 | . 1 Scan Component 1 | . 1 Recycling Unit Hacks 3 | . 3 Report Inventory 2 | . 2 Retrieve Components 1 | . 1 Scanalyzer . | . . Garrison Access Hacks . | . . Unauthorized Hacks . | . . Terminals . | . . Fabricators . | . . Repair Stations . | . . Recycling Units . | . . Scanalyzers . | . . Garrison Access . | . . Data Cores Recovered . | . . Used . | . . Hacking Detections 2 | . 2 Full Trace Events 1 | . 1 Feedback Events . | . . Feedback Blocked . | . . Robot Schematics Acquired . | . . Robots Built . | . . Matter . | . . Time . | . . Total Robot Build Rating . | . . Part Schematics Acquired . | . . Parts Built . | . . Matter . | . . Time . | . . Total Part Build Rating . | . . Parts Repaired . | . . Time . | . . Parts Recycled . | . . Recycled Matter . | . . Retrieved Matter . | . . Retrieved Components 10 | . 10 Parts Scanalyzed . | . . Part Schematics Acquired . | . . Parts Damaged . | . . Bothacking | -11 -10 ------------ Run | Scr Mat Used RIF Installer . | . . Robots Hacked . | . . Non-combat . | . . Combat . | . . Robot Hacks Applied . | . . Relay Couplers Released . | . . Robots Rewired . | . . Allies Hacked . | . . Hacks Repelled . | . . Allies | -11 -10 -------- Run | Scr Mat Total Allies . | . . Largest Group . | . . Highest-Rated Group . | . . Highest-Rated Ally . | . . Total Orders . | . . Ally Attacks . | . . Total Damage . | . . Kills . | . . Allies Corrupted . | . . Allies Melted . | . . Intel | -11 -10 ------- Run | Scr Mat Robot Analysis Total . | . . Derelict Logs Recovered . | . . Drone Launches . | . . Drone Recoveries . | . . Exploration | -11 -10 ------------- Run | Scr Mat Turns Passed 742 | 56 686 Spaces Moved 351 | 36 315 Core 16 | 15 1 Treads . | . . Legs 335 | 21 314 Wheels . | . . Hover . | . . Flight . | . . Fastest Speed 50 | 50 120 Average Speed 149 | 108 154 Slowest Speed 650 | 150 650 Overloaded Moves . | . . Propulsion Burnouts . | . . Robots Hopped . | . . Cave-ins Triggered . | . . Exploration Rate (%) 28 | 4 53 Regions Visited 1 Branch Regions . Pre-discovered Areas . | . . Known Exits Taken . | . . Unknown Exits Taken 1 | 1 . Scrap Searched . | . . Spaces Dug . | . . Terrain Destroyed . | . . Melee . | . . Projectile . | . . AOE . | . . Terrain Rammed . | . . Walls Destroyed . | . . Machines Disabled . | . . Actions | -11 -10 --------- Run | Scr Mat Total 465 | 52 413 Wait 2 | . 2 Move 350 | 35 315 Hop . | . . Pick Up 27 | 10 17 Fast Attach . | . . Attach 14 | 6 8 Detach . | . . Swap 6 | 1 5 Drop 5 | . 5 Fire 61 | . 61 Melee . | . . Ram . | . . Kick . | . . Crush . | . . Escape Stasis . | . . Rewire . | . . Trap . | . . Miscellaneous . | . . Route ------- -11/Scrapyard -10/Materials (discovered 2 exits: [*Mat x2]) History --------- Turn | Location | Event 24 | -11/Scrapyard | Discovered new exit (range 15) 57 | -11/Scrapyard | Entered Materials 220 | -10/Materials | Discovered new exit (range 16) 314 | -10/Materials | Build established: Mutant 552 | -10/Materials | Discovered new exit (range 16) 577 | -10/Materials | Core integrity fell below 50% 598 | -10/Materials | Lost 3 parts (1p2n) 731 | -10/Materials | Core integrity fell below 20% 743 | -10/Materials | Destroyed by S-10 Pest with Light Assault Rifle Last Messages --------------- Dropped Sml. Laser. Dropped Heat Sink. U-05 Engineer lays Concrete. K-01 Serf cleans the Material Compactor. Connecting with Repair Station... >>Scan(Lgt. Assault Rifle) Scanning Lgt. Assault Rifle... Ready to Repair: Lgt. Assault Rifle Rating: 1 Time: 26 Lgt. Assault Rifle destroyed. S-10 Pest destroyed. Acquired 2 matter. Acquired 1 matter. Destroyed Flight Unit. Acquired 1 matter. Acquired 7 matter. R-06 Scavenger collects Flight Unit. Destroyed Flight Unit. Map ----- +----------------------------------------------------+ | ?????????????????????????????????????????????????? | | ?????????????????????????????????????????????????? | | ?????????????????????????????????????????????????? | | ?????????????????????????????????????????????????? | | ?????????????????????????????????????????????????? | | ?????????????????????????????????????????????????? | | ?????????????????????????????????????????????????? | | ????????????????????????????????????????????#####? | | ????????????????????????????????????????????#![ #? | | ????????????????????????????????????????????# <%#? | | ?????????????????????????#??????????????????# %*#? | | ????????????????????????? ??????????????????#! *#? | | ????????????????????????? ??????????????????# #? | | ????????????????????????? ??????????????????# #? | | ????????????????????????? ??????????????????# #? | | ????????????????????????# #?????????????????# #? | | ???????????????????????? ?????#???????????# #? | | ???????????????????????? ????? ???????????# #? | | ???????????????????????? ????? ???????????# #? | | ????????????????????????# #????? ???????????# #? | | ????????????????????????# #????? ???????????# #? | | ????????????????????????# #????# #??????????# #? | | ????????????????????????# #????# #??????????# #? | | ????????????????????????#[#????# #??????????# #? | | ????????????????????????#/###### +??????????# #? | | ????????????????????????#@ r # #??????????# #? | | ????????????????????????# ss!# #??????????# #? | | ????????????????????????# " " # #?########## #? | | ????????????????????????# "R" # #?# # #? | | ????????????????????????# """ o #?# """ # #? | | ????????????????????????# # #?# """ # #? | | ??????????????????????########## ### """ "" # #? | | ??????????????????????# # "" + #? | | ??????????????????????# # """ T" # #? | | ??????????????????????# """ + """ "" # #? | | ??????????????????????# """"" # """ "" # #? | | ??????????????????????# """"" # # #? | | ?????##+###????? ????## """"" ###+####### #? | | ????? ##### #?????????""" # # #? | | ????# #????????? # + #? | | ????+ #????? # # #? | | ????# ^[[ """ #????# """ # # #? | | ????# [! """ #????# """"" ########### #? | | ????# """ #??? # """"" ########### #? | | ????# #??? # """"" ## | | ????# #??? # """ "" | | ???## #??#+# """ [[ Y" | | #### #### """ [[ "" | | """ [ ## | | #### ^ ## | +----------------------------------------------------+ Best States ------------- Heat Dissipation 25 Energy Generation 14 Energy Capacity 250 Matter Stores 300 Matter Capacity 300 Sight Range 16 Terrain Scan Density 60 Evasion (%) 40 Item Schematics ----------------- None Robot Schematics ------------------ None Fabricated ------------ Nothing Alien Tech Used ----------------- None Achievements -------------- None Challenges ------------ None Game ------ Seed MassTachyonBoregun Manual? 0 Play Time 00:10:16 Cumulative 7.6 hours Start 2020.11.17 @ 10:38:31 End 2020.11.17 @ 10:48:33 Sessions 1 Manual Loads 0 Difficulty Rogue Special Mode Halloween2020/ForbiddenLore Game No. 11 Rogue 10 Adventurer 1 Explorer 0 Win Type - Total 0 Types 0/0/0/0/0/0/0/0/0 Lore% 5 Gallery% 14 Achievement% 8 Wizard Run 0 Options --------- ASCII 0 Keyboard 0 Movement Vi Keybinds 1 Fullscreen 2 Font 18/Terminus Map View 76x50 Tactical HUD 0 Map Filters NONE Filters NONE Steam 1 RUN: 1023e39b-7695-4c62-8a33-86d1473e2971